Cogmind - Beta 10.2 @@@ ROGUE MODE // 2021.03.29 @ 17:48:07 Player: ChromeKnight Result: Destroyed by G-73 Enforcer with Phase Gun Performance ------------- Evolutions (6) 3000 Regions Visited (17) 3400 Robots Destroyed (70) 350 Value Destroyed (2555) 2555 Prototype IDs (30) 600 Alien Tech Used (0) 0 Bonus (658) 658 TOTAL SCORE: 10563 Bonus ------- High Alert Combat Kills 243 Follower Combat Kills 271 Aligned with FarCom 300 Friendly Fire -156 Cogmind --------- Core Integrity 0/1150 Matter 96/300 Energy 170/170 System Corruption 5% Temperature Cool (9) Movement Hovering (60) Location -4/Armory Parts ------- > --- POWER (2) -------- Micro Fission Core > --- PROPULSION (5) --- Antigrav System > --- UTILITY (10) ----- Medium Storage Unit Advanced Targeting Computer Advanced Target Analyzer Improved Core Analyzer Advanced Armor Integrity Analyzer Hacking Suite > --- WEAPON (2) ------- (None) > --- INVENTORY (8) ---- Advanced Terrain Scanner Improved Stasis Canceller Advanced Transmission Jammer Reaction Control System Advanced Cloaking Device Peak State ------------ > --- POWER ------------ Quantum Reactor Quantum Reactor > --- PROPULSION ------- Antigrav System Cooled Gravmag System Cooled Gravmag System Improved Antigrav System Improved Gyrokinetic Inverter > --- UTILITY ---------- Medium Storage Unit Improved Signal Interpreter Advanced Targeting Computer Advanced Target Analyzer Improved Core Analyzer Advanced Armor Integrity Analyzer Improved Stasis Canceller Advanced Reaction Control System Hacking Suite Hacking Suite > --- WEAPON ----------- AWS/Gauss > --- INVENTORY -------- Quantum Reactor Advanced Terrain Scanner Improved Stasis Canceller Advanced Transmission Jammer Advanced ECM Suite Reaction Control System Advanced Cloaking Device [Rating: 122] Favorites ----------- Power Improved Deuterium Engine Engine Improved Deuterium Engine Power Core Fission Core Reactor Quantum Reactor Propulsion Cooled Gravmag System Treads Biometal Heavy Treads Leg Aluminum Leg Hover Unit Cooled Gravmag System Utility Improved Signal Interpreter Device Advanced Terrain Scanner Storage Medium Storage Unit Processor Improved Signal Interpreter Hackware Hacking Suite Protection Light Armor Plating Weapon AWS/Gauss Energy Gun Improved EM Shotgun Energy Cannon Matter Neutralizer Ballistic Gun AWS/Gauss Ballistic Cannon Mass Driver Launcher Gamma Bomb Array Build | -11 -10 -10 -9 -9 -9 -8 -8 -7 -7 -7 -5 -5 -5 -4 -4 -4 -4 ------- Run | Scr Mat Min Mat Min Exi Min Mat Fac Sto Rec Fac Upp Upp Fac Was Fac Arm Slots Evolved 12 | . . . 2 . . . 2 2 . . 4 . . 2 . . . Power 1 | . . . . . . . 1 . . . . . . . . . . Propulsion 3 | . . . 1 . . . 1 . . . 1 . . . . . . Utility 8 | . . . 1 . . . . 2 . . 3 . . 2 . . . Weapon . | . . . . . . . . . . . . . . . . . . Parts Attached 133 | 6 2 6 24 2 2 1 5 10 1 . 10 1 1 6 2 6 48 Power 22 | 1 . 4 1 . . . . 2 . . 1 . . . 1 2 10 Engine 10 | 1 . 4 1 . . . . 2 . . 1 . . . . 1 . Core 2 | . . . . . . . . . . . . . . . . 1 1 Reactor 10 | . . . . . . . . . . . . . . . 1 . 9 Propulsion 46 | 2 . . 12 . . . 3 2 1 . 5 . . 3 . 1 17 Treads 2 | . . . . . . . . . . . . . . . . . 2 Leg 19 | 2 . . 7 . . . . . . . . . . . . . 10 Wheel . | . . . . . . . . . . . . . . . . . . Hover 25 | . . . 5 . . . 3 2 1 . 5 . . 3 . 1 5 Flight . | . . . . . . . . . . . . . . . . . . Utility 33 | 1 . . 5 . 1 1 2 6 . . 4 1 1 3 1 3 4 Device 20 | . . . 3 . . 1 1 3 . . 3 1 1 1 1 2 3 Storage 3 | 1 . . . . 1 . 1 . . . . . . . . . . Processor 7 | . . . 1 . . . . 3 . . . . . 1 . 1 1 Hackware 2 | . . . . . . . . . . . 1 . . 1 . . . Protection 1 | . . . 1 . . . . . . . . . . . . . . Artifact . | . . . . . . . . . . . . . . . . . . Weapon 32 | 2 2 2 6 2 1 . . . . . . . . . . . 17 Energy Gun 6 | . . . 6 . . . . . . . . . . . . . . Energy Cannon 13 | . . . . . . . . . . . . . . . . . 13 Ballistic Gun 10 | 2 2 2 . 2 1 . . . . . . . . . . . 1 Ballistic Cannon 1 | . . . . . . . . . . . . . . . . . 1 Launcher 2 | . . . . . . . . . . . . . . . . . 2 Special Weapon . | . . . . . . . . . . . . . . . . . . Impact Weapon . | . . . . . . . . . . . . . . . . . . Slashing Weapon . | . . . . . . . . . . . . . . . . . . Piercing Weapon . | . . . . . . . . . . . . . . . . . . Special Melee Weapon . | . . . . . . . . . . . . . . . . . . Unidentified Prototypes 5 | . . . 2 . . . 1 1 . . 1 . . . . . . Parts Lost 36 | . . 2 3 . . . . . 1 . . . . . . 1 29 Power 5 | . . . . . . . . . . . . . . . . . 5 Propulsion 16 | . . 1 2 . . . . . 1 . . . . . . . 12 Utility 6 | . . . . . . . . . . . . . . . . 1 5 Weapon 9 | . . 1 1 . . . . . . . . . . . . . 7 Highest Loss Streak 15 | . . 1 1 . . . . . 1 . . . . . . 1 15 Average Slot Usage (%) 87 | . 85 84 77 99 96 88 84 91 92 92 82 94 94 93 94 93 81 Engine 9 | . 14 14 11 11 11 11 12 15 15 15 11 11 11 10 8 1 . Reactor 1 | . . . . . . . . . . . . . . . 1 5 7 Leg 7 | . 28 27 19 . . . . . . . . . . . . . 2 Hover 19 | . . . 4 33 33 33 35 30 30 30 26 29 29 26 26 26 17 Device 10 | . . . 2 11 11 11 9 14 15 15 16 23 23 24 21 20 8 Storage 8 | . 14 14 11 11 11 11 9 7 7 7 5 5 5 5 5 5 5 Processor 12 | . . . 7 11 11 11 9 15 15 15 11 11 11 14 15 15 24 Hackware 3 | . . . . . . . . . . . 2 5 5 6 10 10 7 Energy Gun 1 | . . . 6 14 . . . . . . . . . . . . . Ballistic Gun 10 | . 28 27 13 6 18 11 9 7 7 7 5 5 5 5 5 5 2 Naked Turns . | . . . . . . . . . . . . . . . . . . Heaviest Build 74 | 11 13 15 16 14 18 18 24 35 35 35 42 42 44 47 50 50 74 Greatest Support 155 | 20 20 20 30 24 16 16 36 44 44 43 79 79 79 84 68 80 155 Greatest Overweight (x) 16 | 2 . 1 4 . 1 1 1 . . . . . . . . . 16 Average Overweight (x) . | . . . . . . 1 . . . . . . . . . . . Largest Inventory Capacity 8 | 6 6 6 6 6 6 6 8 8 8 8 8 8 8 8 8 8 8 Average Capacity 7 | 5 6 6 6 6 6 6 6 8 8 8 8 8 8 8 8 8 8 Most Carried 8 | 1 6 6 6 6 6 6 8 8 8 8 8 8 8 8 8 8 8 Average Carried 6 | . 3 4 5 6 6 5 6 7 7 8 7 7 7 7 8 7 7 Final Capacity 8 | 6 6 6 6 6 6 6 8 8 8 8 8 8 8 8 8 8 8 Final Carried 8 | 1 4 4 6 6 6 6 8 8 8 8 8 8 8 8 8 7 5 Class Distribution -------------------- 37% | Mutant 29% | Scout 10% | Hacker-Scout 7% | Scavenger-Mutant 4% | Commander-Scout 3% | Commander-Mutant Dominant Class ---------------- Mutant | -10/Materials Mutant | -10/Mines Scavenger-Mutant | -9/Materials Mutant | -9/Mines Mutant | -9/Exiles Skirmisher | -8/Mines Scout | -8/Materials Scout | -7/Factory Scout | -7/Storage Scout | -7/Recycling Scout | -5/Factory Scout | -5/Upper Caves Scout | -5/Upper Caves Scout | -4/Factory Hacker-Scout | -4/Waste Hacker-Scout | -4/Factory Mutant | -4/Armory Resources | -11 -10 -10 -9 -9 -9 -8 -8 -7 -7 -7 -5 -5 -5 -4 -4 -4 -4 ----------- Run | Scr Mat Min Mat Min Exi Min Mat Fac Sto Rec Fac Upp Upp Fac Was Fac Arm Matter Collected 2069 | 187 241 209 634 32 . 13 27 140 10 . 100 10 . . 90 60 316 Remotely . | . . . . . . . . . . . . . . . . . . Salvage Created 2727 | . 114 284 909 51 . . . 182 69 132 . . . 19 . 423 544 Parts 152 | . 6 15 54 7 . . . 13 5 10 . . . 2 . 15 25 Haulers Intercepted 2 | . 1 . 1 . . . . . . . . . . . . . . Recyclers Shooed . | . . . . . . . . . . . . . . . . . . Parts Field Recycled . | . . . . . . . . . . . . . . . . . . Retrieved Matter . | . . . . . . . . . . . . . . . . . . Parts Self-Destructed . | . . . . . . . . . . . . . . . . . . Prevented . | . . . . . . . . . . . . . . . . . . Kills | -11 -10 -10 -9 -9 -9 -8 -8 -7 -7 -7 -5 -5 -5 -4 -4 -4 -4 ------- Run | Scr Mat Min Mat Min Exi Min Mat Fac Sto Rec Fac Upp Upp Fac Was Fac Arm Combat Hostiles Destroyed 56 | . 1 10 17 3 . . . 2 1 4 . . . . . 5 13 Guns 46 | . 1 10 16 3 . . . 2 1 4 . . . . . 5 4 Cannons 8 | . . . . . . . . . . . . . . . . . 8 AOE 1 | . . . 1 . . . . . . . . . . . . . . Classes Destroyed 13 | . 4 1 3 . . . . 1 . 2 . . . . . . 2 Worker 2 | . 1 . . . . . . . . . . . . 1 . . . Hauler 2 | . 1 . 1 . . . . . . . . . . . . . . Recycler 1 | . . . . . . . . . . 1 . . . . . . . Operator 2 | . . . 2 . . . . . . . . . . . . . . Drone 4 | . . . . . . . . . . 4 . . . . . . . Watcher 6 | . 1 . 3 . . . . 2 . . . . . . . . . Swarmer 9 | . . 6 . 3 . . . . . . . . . . . . . Grunt 22 | . 1 4 13 . . . . . . . . . . . . . 4 Brawler 1 | . . . 1 . . . . . . . . . . . . . . Duelist 1 | . . . . . . . . . . . . . . . . . 1 Sentry 10 | . . . 3 . . . . 1 1 . . . . . . 5 . Demolisher 5 | . . . . . . . . . . . . . . . . . 5 Programmer 5 | . . . . . . . . 1 . . . . . . . . 4 Best Kill Streak 5 | . 2 3 5 2 . . . 3 1 4 . . . 1 . 3 3 Combat Bots Only 5 | . 1 3 5 2 . . . 1 1 3 . . . . . 3 3 Max Kills in Single Turn 2 | . 1 2 1 1 . . . 1 1 1 . . . 1 . 1 1 Gunslinging 1 | . . 1 . . . . . . . . . . . . . . . Exploded 1 | . . . 1 . . . . . . . . . . . . . . Melee . | . . . . . . . . . . . . . . . . . . Uniques/NPCs Destroyed . | . . . . . . . . . . . . . . . . . . Combat | -11 -10 -10 -9 -9 -9 -8 -8 -7 -7 -7 -5 -5 -5 -4 -4 -4 -4 -------- Run | Scr Mat Min Mat Min Exi Min Mat Fac Sto Rec Fac Upp Upp Fac Was Fac Arm Damage Taken 5887 | . 152 392 690 111 . . . . 97 17 . . . 83 . 226 4119 Core 1535 | . 32 51 202 25 . . . . 40 17 . . . . . 24 1144 Absorbed by Shields 29 | . . . . . . . . . . . . . . . . . 29 Core Remaining (%) 83 | 100 . 66 . . . 43 100 . . 91 . . 100 . . . . Volleys Fired 150 | . 19 22 67 8 . . . . . . . . . . . . 34 Largest 2 | . 2 2 2 2 . . . . . . . . . . . . 2 Hottest 240 | . 46 46 68 101 . . . . . . . . . . . . 240 Shots Fired 375 | . 38 41 127 16 . . . 10 4 21 . . . 9 . 29 80 Gun 317 | . 38 41 127 16 . . . 10 4 21 . . . 9 . 29 22 Cannon 52 | . . . . . . . . . . . . . . . . . 52 Launcher 6 | . . . . . . . . . . . . . . . . . 6 Special . | . . . . . . . . . . . . . . . . . . Kinetic 278 | . 38 41 101 2 . . . 10 4 21 . . . 9 . 29 23 Thermal 56 | . . . . 7 . . . . . . . . . . . . 49 Explosive . | . . . . . . . . . . . . . . . . . . Electromagnetic 41 | . . . 26 7 . . . . . . . . . . . . 8 Robot Hit Streak 22 | . 7 14 20 2 . . . 9 13 3 . . . 3 . 16 22 Robot Miss Streak 4 | . 3 3 3 4 . . . 1 . 4 . . . 2 . 1 4 Penetration Max . | . . . . . . . . . . . . . . . . . . Secondary Targets 3 | . . 1 2 . . . . . . . . . . . . . . Max Gunslinging Chain 1 | . . 1 1 . . . . . . . . . . . . . . Autonomous 95 | . . . . . . . . 10 4 21 . . . 9 . 29 22 Shots Hit Robots 254 | . 26 30 93 8 . . . 9 4 10 . . . 5 . 28 41 Core Hits 124 | . 8 15 40 4 . . . 5 2 5 . . . 3 . 17 25 Critical Hits 8 | . 1 . 3 . . . . . . . . . . . . 1 3 Critical Kills 4 | . . . 1 . . . . . . . . . . . . . 3 Critical Parts Destroyed 3 | . 1 . 1 . . . . . . . . . . . . 1 . Melee Attacks . | . . . . . . . . . . . . . . . . . . Impact . | . . . . . . . . . . . . . . . . . . Slashing . | . . . . . . . . . . . . . . . . . . Piercing . | . . . . . . . . . . . . . . . . . . Sneak Attacks . | . . . . . . . . . . . . . . . . . . Combat Hostiles . | . . . . . . . . . . . . . . . . . . Follow-up Attacks . | . . . . . . . . . . . . . . . . . . Damage Inflicted 5938 | . 364 470 1449 64 . . . 331 112 323 . . . 181 . 820 1824 Guns 4625 | . 364 470 1326 52 . . . 331 112 323 . . . 181 . 820 646 Cannons 1071 | . . . . . . . . . . . . . . . . . 1071 Explosions 208 | . . . 123 . . . . . . . . . . . . . 85 Melee . | . . . . . . . . . . . . . . . . . . Ramming 34 | . . . . 12 . . . . . . . . . . . . 22 Kinetic 4195 | . 364 470 935 13 . . . 331 112 323 . . . 181 . 820 646 Thermal 1134 | . . . 123 . . . . . . . . . . . . . 1011 Explosive . | . . . . . . . . . . . . . . . . . . Electromagnetic 575 | . . . 391 39 . . . . . . . . . . . . 145 Impact . | . . . . . . . . . . . . . . . . . . Slashing . | . . . . . . . . . . . . . . . . . . Piercing . | . . . . . . . . . . . . . . . . . . Highest Corruption 5 | . . . . . . . . . . . . . . . . . 5 Average Corruption 4 | . . . . . . . . . . . . . . . . . 4 Corruption Purged . | . . . . . . . . . . . . . . . . . . Effects 18 | . . . . . . . . . . . . . . . . . 18 Message Errors 2 | . . . . . . . . . . . . . . . . . 2 Matter Fused 6 | . . . . . . . . . . . . . . . . . 6 Heat Flow Errors 1 | . . . . . . . . . . . . . . . . . 1 Energy Discharges 3 | . . . . . . . . . . . . . . . . . 3 Data Loss (minor) 2 | . . . . . . . . . . . . . . . . . 2 Data Loss (major) 1 | . . . . . . . . . . . . . . . . . 1 Misfires 1 | . . . . . . . . . . . . . . . . . 1 Targeting Errors 2 | . . . . . . . . . . . . . . . . . 2 Overload Shots . | . . . . . . . . . . . . . . . . . . Overflow Damage 39 | . . . . . . . . . . . . . . . . . 39 Projectiles 39 | . . . . . . . . . . . . . . . . . 39 Explosions . | . . . . . . . . . . . . . . . . . . Melee . | . . . . . . . . . . . . . . . . . . Knockbacks . | . . . . . . . . . . . . . . . . . . Impact . | . . . . . . . . . . . . . . . . . . Kinetic . | . . . . . . . . . . . . . . . . . . Secondary . | . . . . . . . . . . . . . . . . . . Self-Inflicted Damage 160 | . . . 80 6 . . . . . . . . . . . . 74 Shots 11 | . . . 2 . . . . . . . . . . . . . 9 Rammed 4 | . . . . 2 . . . . . . . . . . . . 2 Targets Rammed 4 | . . . . 2 . . . . . . . . . . . . 2 Kicked . | . . . . . . . . . . . . . . . . . . Crushed . | . . . . . . . . . . . . . . . . . . Highest Temperature 765 | . 36 42 86 176 . . . . . . . . . . . 11 765 Average Temperature 112 | . 14 16 19 79 . . . . . . . . . . . 1 209 Received Heat Transfer 987 | . 84 138 252 . . . . . 6 . . . . 9 . 18 480 Effects 41 | . . . . . . . . . . . . . . . . . 41 Shutdowns 11 | . . . . . . . . . . . . . . . . . 11 Energy Bleed 7 | . . . . . . . . . . . . . . . . . 7 Interference 13 | . . . . . . . . . . . . . . . . . 13 Matter Decay 3 | . . . . . . . . . . . . . . . . . 3 Short Circuit 3 | . . . . . . . . . . . . . . . . . 3 Damage (minor) 2 | . . . . . . . . . . . . . . . . . 2 Damage (core) 2 | . . . . . . . . . . . . . . . . . 2 Siege Activations . | . . . . . . . . . . . . . . . . . . Robots Corrupted 1 | . . . . . . . . . . . . . . . . . 1 Combat Hostiles 1 | . . . . . . . . . . . . . . . . . 1 Parts Fried 5 | . . . 1 . . . . . . . . . . . . . 4 Impact Corruptions . | . . . . . . . . . . . . . . . . . . Robots Melted . | . . . . . . . . . . . . . . . . . . Combat Hostiles . | . . . . . . . . . . . . . . . . . . Parts Melted . | . . . . . . . . . . . . . . . . . . Heat Transferred 1025 | . . . 100 . . . . . . . . . . . . . 925 Parts Sabotaged . | . . . . . . . . . . . . . . . . . . Parts Stolen . | . . . . . . . . . . . . . . . . . . Parts Stripped . | . . . . . . . . . . . . . . . . . . Power Chain Reactions 4 | . . . 4 . . . . . . . . . . . . . . Missiles Intercepted . | . . . . . . . . . . . . . . . . . . Alert | -11 -10 -10 -9 -9 -9 -8 -8 -7 -7 -7 -5 -5 -5 -4 -4 -4 -4 ------- Run | Scr Mat Min Mat Min Exi Min Mat Fac Sto Rec Fac Upp Upp Fac Was Fac Arm Peak Influence 1113 | . 65 177 385 202 . . 30 76 72 261 1113 . . 444 155 170 891 Initial 1009 | . . 2 27 117 . . . 13 34 27 1009 . . 336 155 108 66 Average 195 | . 31 54 211 142 . . 16 13 45 147 1083 . . 413 155 122 314 Maximum Alert Level 4 | . . . 1 1 . . . . . 1 4 . . 2 . . 3 Low Security (%) 70 | 100 100 100 40 80 . 100 100 100 100 74 . . . . 100 100 53 Level 1 13 | . . . 59 19 . . . . . 25 . . . 27 . . 8 Level 2 7 | . . . . . . . . . . . . . . 72 . . 17 Level 3 5 | . . . . . . . . . . . 32 . . . . . 19 Level 4 2 | . . . . . . . . . . . 67 . . . . . . Level 5 . | . . . . . . . . . . . . . . . . . . High Security . | . . . . . . . . . . . . . . . . . . Max Security . | . . . . . . . . . . . . . . . . . . Squads Dispatched 16 | . 1 . 5 . . . . 2 . . . . . 1 . . 7 Investigation 6 | . 1 . 2 . . . . 1 . . . . . . . . 2 Extermination 4 | . . . . . . . . 1 . . . . . . . . 3 Reinforcement 4 | . . . 3 . . . . . . . . . . 1 . . . Assault 2 | . . . . . . . . . . . . . . . . . 2 Garrison . | . . . . . . . . . . . . . . . . . . Intercept . | . . . . . . . . . . . . . . . . . . Construction Impeded . | . . . . . . . . . . . . . . . . . . Haulers Reinforced . | . . . . . . . . . . . . . . . . . . Stealth | -11 -10 -10 -9 -9 -9 -8 -8 -7 -7 -7 -5 -5 -5 -4 -4 -4 -4 --------- Run | Scr Mat Min Mat Min Exi Min Mat Fac Sto Rec Fac Upp Upp Fac Was Fac Arm Distress Signals 7 | . . . 2 . . . . . . . 1 . . . . . 4 Communications Jammed . | . . . . . . . . . . . . . . . . . . Distress Signals . | . . . . . . . . . . . . . . . . . . Times Spotted 130 | . 4 10 28 3 . . . 1 1 11 . . . 5 . 8 59 Peak Tracking Total 14 | . 2 3 5 3 . . . 1 1 4 . . . 4 . 3 14 Tactical Retreats 10 | . . . . 1 . . . . . . . . . 2 . . 7 Traps | -11 -10 -10 -9 -9 -9 -8 -8 -7 -7 -7 -5 -5 -5 -4 -4 -4 -4 ------- Run | Scr Mat Min Mat Min Exi Min Mat Fac Sto Rec Fac Upp Upp Fac Was Fac Arm Traps Triggered 12 | . 1 . 1 . . . . 2 1 . 1 . . 2 . 1 3 Indirectly . | . . . . . . . . . . . . . . . . . . Trap Hack Attempts . | . . . . . . . . . . . . . . . . . . Triggered . | . . . . . . . . . . . . . . . . . . Disarmed . | . . . . . . . . . . . . . . . . . . Reprogrammed . | . . . . . . . . . . . . . . . . . . Reused . | . . . . . . . . . . . . . . . . . . Traps Extracted . | . . . . . . . . . . . . . . . . . . Installed . | . . . . . . . . . . . . . . . . . . Triggered 4 | . . . . . . . . . . . . . 1 . . . 3 Machines | -11 -10 -10 -9 -9 -9 -8 -8 -7 -7 -7 -5 -5 -5 -4 -4 -4 -4 ---------- Run | Scr Mat Min Mat Min Exi Min Mat Fac Sto Rec Fac Upp Upp Fac Was Fac Arm Machines Disabled 11 | . . . 4 . . . . . . 1 2 . . . . 1 3 Max in Single Turn 1 | . . . 1 . . . . . . 1 . . . . . 1 1 Garrison Access 1 | . . . . . . . . . . . . . . 1 . . . Machines Sabotaged . | . . . . . . . . . . . . . . . . . . Garrisons Compromised . | . . . . . . . . . . . . . . . . . . Overloaded Fab Kills . | . . . . . . . . . . . . . . . . . . Fab Network Shutdowns . | . . . . . . . . . . . . . . . . . . Hacking | -11 -10 -10 -9 -9 -9 -8 -8 -7 -7 -7 -5 -5 -5 -4 -4 -4 -4 --------- Run | Scr Mat Min Mat Min Exi Min Mat Fac Sto Rec Fac Upp Upp Fac Was Fac Arm Machines Accessed 27 | . 1 . 3 . 3 . 6 2 2 1 1 2 1 3 . . 2 Terminals 14 | . 1 . 2 . . . 4 2 2 1 . . . 1 . . 1 Fabricators 3 | . . . . . . . . . . . 1 . . 1 . . 1 Repair Stations 2 | . . . . . . . 2 . . . . . . . . . . Recycling Units . | . . . . . . . . . . . . . . . . . . Scanalyzers 1 | . . . 1 . . . . . . . . . . . . . . Garrison Access 1 | . . . . . . . . . . . . . . 1 . . . Total Hacks 62 | . 3 . 7 . 18 . 10 4 3 3 1 5 1 3 . . 4 Successful 43 | . 2 . 5 . 18 . 5 1 2 1 . 5 1 2 . . 1 Failed 19 | . 1 . 2 . . . 5 3 1 2 1 . . 1 . . 3 Catastrophic 2 | . . . . . . . . . . 1 . . . 1 . . . Database Lockouts . | . . . . . . . . . . . . . . . . . . Manual 12 | . 1 . 1 . 1 . 3 . 3 2 . . . 1 . . . Terminals 23 | . 3 . 2 . . . 6 4 3 3 . . . 1 . . 1 Fabricators 5 | . . . . . . . . . . . 1 . . 1 . . 3 Repair Stations 4 | . . . . . . . 4 . . . . . . . . . . Recycling Units . | . . . . . . . . . . . . . . . . . . Scanalyzers 5 | . . . 5 . . . . . . . . . . . . . . Garrison Access 1 | . . . . . . . . . . . . . . 1 . . . Terminal Hacks 36 | . 2 . 1 . 18 . 4 1 2 1 . 5 1 . . . 1 Record 23 | . . . . . 17 . 2 . . . . 4 . . . . . Robot Analysis 1 | . . . . . . . . 1 . . . . . . . . . Prototype ID Bank 1 | . . . . . . . . . . 1 . . . . . . . Open Door 5 | . . . . . . . . . 2 . . 1 1 . . . 1 Level Access Points 1 | . . . . . . . 1 . . . . . . . . . . Branch Access Points 1 | . 1 . . . . . . . . . . . . . . . . Zone Layout 3 | . 1 . 1 . . . 1 . . . . . . . . . . EX-Prototype ID Bank 1 | . . . . . 1 . . . . . . . . . . . . Fabricator Hacks 1 | . . . . . . . . . . . . . . 1 . . . Build 1 | . . . . . . . . . . . . . . 1 . . . Repair Station Hacks 1 | . . . . . . . 1 . . . . . . . . . . Refit 1 | . . . . . . . 1 . . . . . . . . . . Recycling Unit Hacks . | . . . . . . . . . . . . . . . . . . Scanalyzer 3 | . . . 3 . . . . . . . . . . . . . . Insert Component 1 | . . . 1 . . . . . . . . . . . . . . Analyze 2 | . . . 2 . . . . . . . . . . . . . . Garrison Access Hacks 1 | . . . . . . . . . . . . . . 1 . . . Seal Access 1 | . . . . . . . . . . . . . . 1 . . . Unauthorized Hacks 1 | . . . 1 . . . . . . . . . . . . . . Terminals 1 | . . . 1 . . . . . . . . . . . . . . Track 1 | . . . 1 . . . . . . . . . . . . . . Fabricators . | . . . . . . . . . . . . . . . . . . Repair Stations . | . . . . . . . . . . . . . . . . . . Recycling Units . | . . . . . . . . . . . . . . . . . . Scanalyzers . | . . . . . . . . . . . . . . . . . . Garrison Access . | . . . . . . . . . . . . . . . . . . Data Cores Recovered 2 | . . . 1 . . . . . . . . . . . . . 1 Used 1 | . . . 1 . . . . . . . . . . . . . . Hacking Detections 13 | . . . 2 . . . 5 2 1 1 . . . 1 . . 1 Full Trace Events 2 | . . . 1 . . . . . . . . . . . . . 1 Feedback Events 1 | . . . . . . . . . . . . . . . . . 1 Corruption 1 | . . . . . . . . . . . . . . . . . 1 Feedback Blocked . | . . . . . . . . . . . . . . . . . . Robot Schematics Acquired . | . . . . . . . . . . . . . . . . . . Robots Built . | . . . . . . . . . . . . . . . . . . Matter . | . . . . . . . . . . . . . . . . . . Time . | . . . . . . . . . . . . . . . . . . Total Robot Build Rating . | . . . . . . . . . . . . . . . . . . Part Schematics Acquired 1 | . . . 1 . . . . . . . . . . . . . . Parts Built 1 | . . . . . . . . . . . . . . 1 . . . Matter 278 | . . . . . . . . . . . . . . 278 . . . Time 46 | . . . . . . . . . . . . . . 46 . . . Total Part Build Rating 9 | . . . . . . . . . . . . . . 9 . . . Parts Repaired . | . . . . . . . . . . . . . . . . . . Time . | . . . . . . . . . . . . . . . . . . Parts Recycled . | . . . . . . . . . . . . . . . . . . Recycled Matter . | . . . . . . . . . . . . . . . . . . Retrieved Matter . | . . . . . . . . . . . . . . . . . . Retrieved Components . | . . . . . . . . . . . . . . . . . . Parts Scanalyzed 1 | . . . 1 . . . . . . . . . . . . . . Part Schematics Acquired 1 | . . . 1 . . . . . . . . . . . . . . Parts Damaged . | . . . . . . . . . . . . . . . . . . Bothacking | -11 -10 -10 -9 -9 -9 -8 -8 -7 -7 -7 -5 -5 -5 -4 -4 -4 -4 ------------ Run | Scr Mat Min Mat Min Exi Min Mat Fac Sto Rec Fac Upp Upp Fac Was Fac Arm Used RIF Installer . | . . . . . . . . . . . . . . . . . . Robots Hacked . | . . . . . . . . . . . . . . . . . . Non-combat . | . . . . . . . . . . . . . . . . . . Combat . | . . . . . . . . . . . . . . . . . . Robot Hacks Applied . | . . . . . . . . . . . . . . . . . . Relay Couplers Released . | . . . . . . . . . . . . . . . . . . Robots Rewired 13 | . . . . . . . . . . 9 . . . . . . 4 Allies Hacked . | . . . . . . . . . . . . . . . . . . Hacks Repelled . | . . . . . . . . . . . . . . . . . . Allies | -11 -10 -10 -9 -9 -9 -8 -8 -7 -7 -7 -5 -5 -5 -4 -4 -4 -4 -------- Run | Scr Mat Min Mat Min Exi Min Mat Fac Sto Rec Fac Upp Upp Fac Was Fac Arm Total Allies 25 | . . . . . . . . . . 9 . 2 . . . . 14 Largest Group 10 | . . . . . . . . . . 9 9 2 . . . . 10 Highest-Rated Group 481 | . . . . . . . . . . 241 241 40 . . . . 481 Highest-Rated Ally 60 | . . . . . . . . . . 37 37 20 . . . . 60 Total Orders 3 | . . . . . . . . . . . 1 . . . . . 2 STAY 1 | . . . . . . . . . . . . . . . . . 1 ROAM 1 | . . . . . . . . . . . 1 . . . . . . GUARD 1 | . . . . . . . . . . . . . . . . . 1 Ally Attacks 48 | . . . . . . . . . . 3 10 . . . . . 35 Total Damage 1742 | . . . . . . . . . . 267 661 . . . . . 814 Kills 19 | . . . . . . . . . . 5 7 . . . . . 7 Allies Corrupted . | . . . . . . . . . . . . . . . . . . Allies Melted . | . . . . . . . . . . . . . . . . . . Intel | -11 -10 -10 -9 -9 -9 -8 -8 -7 -7 -7 -5 -5 -5 -4 -4 -4 -4 ------- Run | Scr Mat Min Mat Min Exi Min Mat Fac Sto Rec Fac Upp Upp Fac Was Fac Arm Robot Analysis Total 1 | . . . . . . . . 1 . . . . . . . . . Derelict Logs Recovered 6 | . . 2 . 1 . . . . . . . . 3 . . . . Drone Launches . | . . . . . . . . . . . . . . . . . . Drone Recoveries . | . . . . . . . . . . . . . . . . . . Exploration | -11 -10 -10 -9 -9 -9 -8 -8 -7 -7 -7 -5 -5 -5 -4 -4 -4 -4 ------------- Run | Scr Mat Min Mat Min Exi Min Mat Fac Sto Rec Fac Upp Upp Fac Was Fac Arm Turns Passed 8070 | 68 564 698 990 289 425 103 272 998 62 237 279 293 150 368 189 499 1586 Spaces Moved 7937 | 55 413 518 674 407 633 87 297 783 135 210 532 332 259 546 411 680 965 Core 29 | 17 . . 8 . . . . . . . . . . . . . 4 Treads 8 | . . . . . . . . . . . . . . . . . 8 Legs 1504 | 38 413 518 429 . . . . . . . . . . . . . 106 Wheels . | . . . . . . . . . . . . . . . . . . Hover 6396 | . . . 237 407 633 87 297 783 135 210 532 332 259 546 411 680 847 Flight . | . . . . . . . . . . . . . . . . . . Fastest Speed 31 | 50 120 120 52 52 56 116 45 43 43 43 36 38 38 42 45 38 31 Average Speed 62 | 107 120 120 104 55 65 116 49 44 43 43 39 38 40 44 45 40 58 Slowest Speed 850 | 150 120 150 250 56 116 116 116 45 45 43 43 38 43 45 45 45 850 Overloaded Moves 148 | . . . . . . . . . . . . . . . . . 148 Propulsion Burnouts . | . . . . . . . . . . . . . . . . . . Robots Hopped . | . . . . . . . . . . . . . . . . . . Cave-ins Triggered . | . . . . . . . . . . . . . . . . . . Exploration Rate (%) 39 | 4 45 73 38 56 91 27 25 24 26 47 13 61 23 15 95 19 36 Regions Visited 17 Branch Regions 9 Pre-discovered Areas 3 | . . . . . . . . . . . . 2 1 . . . . Known Exits Taken 14 | . 1 1 1 1 1 1 1 1 1 1 1 1 1 . . 1 . Unknown Exits Taken 1 | 1 . . . . . . . . . . . . . . . . . Scrap Searched 5 | . . 1 . 2 . 1 . . . . . 1 . . . . . Spaces Dug 1 | . . . . . . . . . . . . . . . . . 1 Terrain Destroyed 73 | . . . 20 . . . . 2 2 19 . . . 2 . 5 23 Melee . | . . . . . . . . . . . . . . . . . . Projectile 53 | . . . . . . . . 2 2 19 . . . 2 . 5 23 AOE 20 | . . . 20 . . . . . . . . . . . . . . Terrain Rammed . | . . . . . . . . . . . . . . . . . . Walls Destroyed . | . . . . . . . . . . . . . . . . . . Machines Disabled . | . . . . . . . . . . . . . . . . . . Actions | -11 -10 -10 -9 -9 -9 -8 -8 -7 -7 -7 -5 -5 -5 -4 -4 -4 -4 --------- Run | Scr Mat Min Mat Min Exi Min Mat Fac Sto Rec Fac Upp Upp Fac Was Fac Arm Total 10774 | 61 450 557 854 452 644 89 422 1432 138 356 601 499 303 670 413 905 1928 Wait 2293 | . 10 8 62 32 7 . 110 631 2 45 48 162 41 112 . 217 806 Move 7921 | 54 412 517 673 406 632 86 296 782 134 209 531 331 258 546 410 679 965 Hop . | . . . . . . . . . . . . . . . . . . Pick Up 40 | 1 4 1 8 . . 1 5 2 1 . 3 2 1 2 . . 9 Fast Attach 67 | 6 . . 13 2 1 . 2 2 . . 6 . 1 1 1 3 29 Attach 26 | . . 1 5 . . . . 3 1 . 1 1 . 3 . 1 10 Detach 9 | . . . 2 . . . . 2 . . . 1 . 1 . . 3 Swap 40 | . 2 5 6 . 1 1 3 5 . . 3 . . 2 1 2 9 Drop 86 | . 3 3 18 2 3 1 6 5 . . 7 2 2 3 1 3 27 Fire 150 | . 19 22 67 8 . . . . . . . . . . . . 34 Melee . | . . . . . . . . . . . . . . . . . . Ram 4 | . . . . 2 . . . . . . . . . . . . 2 Kick . | . . . . . . . . . . . . . . . . . . Crush . | . . . . . . . . . . . . . . . . . . Escape Stasis 2 | . . . . . . . . . . . 2 . . . . . . Rewire 136 | . . . . . . . . . . 102 . . . . . . 34 Trap . | . . . . . . . . . . . . . . . . . . Miscellaneous . | . . . . . . . . . . . . . . . . . . Route ------- -11/Scrapyard -10/Materials (discovered 2 exits: *Mat / *Min) -10/Mines -9/Materials -9/Mines (discovered 3 exits: *Mat x2 / *Exi) -9/Exiles (discovered 2 exits: *Min x2) -8/Mines -8/Materials (discovered 3 exits: *Fac x3) -7/Factory -7/Storage -7/Recycling -5/Factory (discovered 2 exits: *Upp / [*Ext]) -5/Upper Caves -5/Upper Caves (discovered 2 exits: *Fac / War) -4/Factory (discovered 2 exits: *Res / Upp) -4/Waste -4/Factory (discovered 2 exits: *Upp / *Arm) -4/Armory History --------- Turn | Location | Event 9 | -11/Scrapyard | Discovered new exit (range 15) 69 | -11/Scrapyard | Entered Materials 123 | -10/Materials | Discovered new exit (range 13) 123 | -10/Materials | Identified exit to Mines 302 | -10/Materials | Build established: Mutant 410 | -10/Materials | Discovered new exit (range 5) 633 | -10/Materials | Entered Mines 749 | -10/Mines | Found a damaged Exp. Sensor Array with a note attached 752 | -10/Mines | Found Prototype Device 907 | -10/Mines | Identified exit to Materials 1331 | -10/Mines | Entered Materials 1331 | -9/Materials | Evolved 2 slots: Propulsion x1, Utility x1 1332 | -9/Materials | Identified exit to Mines 1459 | -9/Materials | Identified Exp. Sensor Array 1922 | -9/Materials | Build established: Scavenger-Mutant 2262 | -9/Materials | Core integrity fell below 50% 2321 | -9/Materials | Entered Mines 2331 | -9/Mines | Discovered new exit (range 6) 2337 | -9/Mines | Received a Rocket Launcher from a helpful Derelict 2357 | -9/Mines | Learned location of 1 exit from Materials 2370 | -9/Mines | Assembled infested the area 2408 | -9/Mines | Discovered new exit (range 8) 2414 | -9/Mines | Identified exit to Materials 2429 | -9/Mines | Build established: Mutant 2606 | -9/Mines | Deemed a non-threat by the Exiles lab entrance 2607 | -9/Mines | Discovered new exit (range 5) 2609 | -9/Mines | Identified exit to Exiles 2610 | -9/Mines | Entered Exiles 2611 | -9/Exiles | Identified exit to Mines 2630 | -9/Exiles | Met 8R-AWN 2639 | -9/Exiles | Met EX-HEX 2664 | -9/Exiles | Met EX-DEC 2709 | -9/Exiles | Discovered exit to Mines (range 14) 2756 | -9/Exiles | Visited The Gauntlet 2841 | -9/Exiles | Met EX-BIN 2896 | -9/Exiles | Aligned with FarCom system 2897 | -9/Exiles | Given EX-Vault access code 2913 | -9/Exiles | Opened EX-Vault 2918 | -9/Exiles | Found AWS/Gauss 2947 | -9/Exiles | Warned to stay clear of 0b10 Research branches 3035 | -9/Exiles | Left Exiles lab with AWS/Gauss 3035 | -9/Exiles | Entered Mines 3128 | -8/Mines | Discovered exit to Materials (range 9) 3138 | -8/Mines | Entered Materials 3138 | -8/Materials | Evolved 2 slots: Power x1, Propulsion x1 3139 | -8/Materials | Identified exit to Factory 3410 | -8/Materials | Entered Factory 3410 | -7/Factory | Evolved 2 slots: Utility x2 3439 | -7/Factory | Build established: Scout 4362 | -7/Factory | Discovered new exit (range 13) 4402 | -7/Factory | Identified exit to Storage 4408 | -7/Factory | Entered Storage 4469 | -7/Storage | Used back door to open Recycling access 4469 | -7/Storage | Discovered new exit (range 4) 4470 | -7/Storage | Identified exit to Recycling 4470 | -7/Storage | Entered Recycling 4522 | -7/Recycling | Spotter reported a threat 4522 | -7/Recycling | Spotter reported a threat 4538 | -7/Recycling | Spotter reported a threat 4539 | -7/Recycling | Spotter reported a threat 4605 | -7/Recycling | Spotter reported a threat 4647 | -7/Recycling | Spotter reported a threat 4682 | -7/Recycling | Discovered new exit (range 7) 4688 | -7/Recycling | Identified exit to Factory 4693 | -7/Recycling | Spotter reported a threat 4707 | -7/Recycling | Entered Factory 4707 | -5/Factory | Accompanied by 9 allies 4707 | -5/Factory | Evolved 4 slots: Propulsion x1, Utility x3 4852 | -5/Factory | Discovered new exit (range 16) 4940 | -5/Factory | Discovered new exit (range 6) 4943 | -5/Factory | Identified exit to Upper Caves 4986 | -5/Factory | Entered Upper Caves 5055 | -5/Upper Caves | Learned location of Extension (-5) 5055 | -5/Upper Caves | Learned Factory security intel 5055 | -5/Upper Caves | Learned Extension terminal intel 5055 | -5/Upper Caves | A Commander dispatched an escort 5119 | -5/Upper Caves | Discovered new exit (range 10) 5123 | -5/Upper Caves | Identified exit to Upper Caves 5279 | -5/Upper Caves | Entered another Upper Caves area 5308 | -5/Upper Caves | Spotted B-75 Beast 5340 | -5/Upper Caves | Identified exit to Warlord 5367 | -5/Upper Caves | Learned location of Warlord (-5) 5426 | -5/Upper Caves | Discovered new exit (range 6) 5428 | -5/Upper Caves | Identified exit to Factory 5429 | -5/Upper Caves | Entered Factory 5429 | -4/Factory | Evolved 2 slots: Utility x2 5430 | -4/Factory | Identified exit to Upper Caves 5636 | -4/Factory | Fabricated Centrium Leg? 5779 | -4/Factory | Discovered new exit (range 15) 5796 | -4/Factory | Identified exit to Research 5797 | -4/Factory | Sucked down chute 5797 | -4/Factory | Entered Waste 5797 | -4/Waste | The area was eerily silent 5825 | -4/Waste | Discovered new exit (range 15) 5985 | -4/Waste | Identified exit to Factory 5986 | -4/Waste | Entered Factory 6078 | -4/Factory | Discovered exit to Upper Caves (range 16) 6410 | -4/Factory | Build established: Hacker-Scout 6422 | -4/Factory | Discovered new exit (range 9) 6480 | -4/Factory | Identified exit to Armory 6485 | -4/Factory | Entered Armory 6778 | -4/Armory | Assisted by bots powering up and referring to "LRC-V3" 7374 | -4/Armory | Lost 5 parts (1p1n2u1w) 7387 | -4/Armory | Found Gamma Bomb Array 7389 | -4/Armory | Found Gamma Bomb Array 7391 | -4/Armory | Found Gamma Bomb Array 7393 | -4/Armory | Found Gamma Bomb Array 7485 | -4/Armory | First assault squad dispatched 7759 | -4/Armory | Lost 6 parts (1p3n1u1w) 7997 | -4/Armory | Core integrity fell below 50% 8017 | -4/Armory | Spotted B-86 Titan 8060 | -4/Armory | Core integrity fell below 20% 8071 | -4/Armory | Destroyed by G-73 Enforcer with Phase Gun Last Messages --------------- 08018_ Enh. Nova Cannon destroyed. 08018_ Flexi-carbon Leg destroyed. 08019_ Overheating: Energy bleed (-11). 08019_ The unstable cave ceiling collapses. 08021_ Quantum Reactor destroyed. 08023_ Enh. Nova Cannon destroyed. 08037_ Matter Neutralizer destroyed. 08037_ Flexi-carbon Leg destroyed. 08042_ C-30 ARC bursts open, deploying its payload. 08042_ G-73 Enforcer unfolds itself. 08042_ L-61 Swordsman unfolds itself. 08042_ G-67 Veteran unfolds itself. 08042_ M-36 Artificer unfolds itself. 08052_ Acquired 4 matter. 08053_ Acquired 14 matter. 08056_ Flexi-carbon Leg destroyed. 08059_ Myomer Leg destroyed. 08060_ Acquired Mic. Fission Core. 08064_ Imp. Signal Interpreter destroyed. 08069_ Acquired Antigrav System. Map ----- +----------------------------------------------------+ | ?????????????????????????????????????????????????? | | ?????????????????????????????????????????????????? | | ????##"#####?####????????????????????????????????? | | ?? ?# ! #???????????????????????????????? | | ? ## #??????#????????????????????????? | | # #???????????????????????????????? | | """ ######????#?????????????????????? | | [! """ # #??????????????????????????? | | !! =# """ # !! #??????????????????????????? | | # # !! ######?????????????????????? | | ?? # !! # #?????????????????????? | | ?? #! "" "" # ! + #?????????????????????? | | ?# # "F "" % !! # #?????????????????????? | | ?# # """"" " !! # #???????????#?????????? | | ?# # # #gp #???#?????????????????? | | ?# ## #### # #?????????????????????? | | ?# # ######## Y ################??##### | | ?# # ]] ## ##gg g# #??# | | ?# # ] ### ; pg# "" " #??# | | ?# # ] ## ## !;= + #??# " " | | ?# # # ## *! !g # #### "R" | | ?# # ### ! # """" # """ | | ?# # ##;# *% | | ?# # %[ ##| # # # | | ?# #""""""###! |l !% | | ?# ! ! * [% !%@ [ w ! | | ?# [** % = % = | | ?#"##""#######! = % ! %= | | ? #???# ; # ##% * ########### | | #??######+### = ## | | #??# # | | #??# === " ## | | "" """ #??# === # # | | "" T" ???# === # """"" ## # | | "" """ ???# # ! [|==" ### !|[ # | | ? ???# # ] ] =" + ^ ![[ # | | ??????#???# # =" ####|[[ ]# | | ??????????# # ""[[""""" #??########### | | ??????????#########"; [| === #????????????? | | ??????????????????##### ##"#|%#!#####????????????? | | | | | | | | | | | | | | | | | | | | | +----------------------------------------------------+ Best States ------------- Heat Dissipation 43 Energy Generation 45 Energy Capacity 600 Matter Stores 300 Matter Capacity 300 Sight Range 16 Robot Scan Range 30 Terrain Scan Range 20 Terrain Scan Density 10 ECM Strength 3 Jamming Range 16 Power Amplification 20 Armor Coverage 150 Point Defense Rating 160 Evasion (%) 72 Targeting Accuracy 8 Target Analysis 8 Core Analysis 8 Armor Integrity Analysis 66 Recoil Reduction 4 Stasis Canceling 2 Offensive Hacking 20 Item Schematics ----------------- Exp. Sensor Array | -9/Materials | Scanalyzed Robot Schematics ------------------ None Fabricated ------------ Centrium Leg | x1 | -4/Factory | Preloaded Alien Tech Used ----------------- None Achievements -------------- None Challenges ------------ None Game ------ Seed GravitonNodeNegator Manual? 0 Play Time 01:20:36 Cumulative 107.1 hours Start 2021.03.29 @ 13:27:35 End 2021.03.29 @ 17:48:07 Sessions 3 Manual Loads 0 Difficulty Rogue Special Mode None Game No. 259 Rogue 106 Adventurer 148 Explorer 5 Win Type - Total 1 Types 1/0/0/0/0/0/0/0/0 Lore% 59 Gallery% 68 Achievement% 53 Wizard Run 0 Options --------- ASCII 0 Keyboard 0 Movement Numpad Keybinds 0 Fullscreen 1 Font 14/X11 Map View 84x54 Tactical HUD 1 Map Filters NONE Filters NONE Steam 1 RUN: ed032057-f736-4af9-9ff2-9ce72a55a9c5